{"text_format":"3","workbook":"xlsx","n_sheets":13,"sheets":["يناير","فبراير","مارس","أبريل","مايو","يونيو","يوليو","أغسطس","سبتمبر","أكتوبر","نوفمبر","ديسمبر","ملخص من بداية العام حتى اليوم"],"not_rendered":{"charts":1,"defined_names":13},"read":"whole","date_system":"1900"}

{"sheet":"يناير","index":0,"n_rows":9,"n_cols":14,"rows_kept":9,"merged":[[3,0,4,0],[6,0,7,0]]}
["يناير"]
["المبيعات عبر الإنترنت",null,"معرف المزاد","وصف العنصر","سعر الشراء","سعر البيع","رسوم الإنترنت","رسوم PayPal","رسوم بطاقات الائتمان","مصاريف الشحن","رسوم الشحن","معدل الربح/الخسارة للمبيعات","معدل الربح/الخسارة للشحن","إجمالي الربح/الخسارة"]
["سنة",null,"TS001","العنصر 1",5,4,2,1.5,0,4,2,{"$f":"IFERROR(JanuarySales[سعر البيع]-(JanuarySales[سعر الشراء]+JanuarySales[رسوم الإنترنت]+JanuarySales[رسوم PayPal]+JanuarySales[رسوم بطاقات الائتمان]),\"\")","v":-4.5},{"$f":"JanuarySales[مصاريف الشحن]-JanuarySales[رسوم الشحن]","v":2},{"$f":"JanuarySales[معدل الربح/الخسارة للمبيعات]+JanuarySales[معدل الربح/الخسارة للشحن]","v":-2.5}]
[2012,null,"TP004","العنصر 2",2,30,0.5,0.5,null,4,5.5,{"$f":"IFERROR(JanuarySales[سعر البيع]-(JanuarySales[سعر الشراء]+JanuarySales[رسوم الإنترنت]+JanuarySales[رسوم PayPal]+JanuarySales[رسوم بطاقات الائتمان]),\"\")","v":27},{"$f":"JanuarySales[مصاريف الشحن]-JanuarySales[رسوم الشحن]","v":-1.5},{"$f":"JanuarySales[معدل الربح/الخسارة للمبيعات]+JanuarySales[معدل الربح/الخسارة للشحن]","v":25.5}]
[null,null,"RS99","العنصر 3",17,23,2,null,2,3,2,{"$f":"IFERROR(JanuarySales[سعر البيع]-(JanuarySales[سعر الشراء]+JanuarySales[رسوم الإنترنت]+JanuarySales[رسوم PayPal]+JanuarySales[رسوم بطاقات الائتمان]),\"\")","v":2},{"$f":"JanuarySales[مصاريف الشحن]-JanuarySales[رسوم الشحن]","v":1},{"$f":"JanuarySales[معدل الربح/الخسارة للمبيعات]+JanuarySales[معدل الربح/الخسارة للشحن]","v":3}]
["إجمالي الربح/الخسارة",null,"ST001","العنصر 4",120,180,2,1.5,null,3,2,{"$f":"IFERROR(JanuarySales[سعر البيع]-(JanuarySales[سعر الشراء]+JanuarySales[رسوم الإنترنت]+JanuarySales[رسوم PayPal]+JanuarySales[رسوم بطاقات الائتمان]),\"\")","v":56.5},{"$f":"JanuarySales[مصاريف الشحن]-JanuarySales[رسوم الشحن]","v":1},{"$f":"JanuarySales[معدل الربح/الخسارة للمبيعات]+JanuarySales[معدل الربح/الخسارة للشحن]","v":57.5}]
[{"$f":"JanuarySales[[#Totals],[إجمالي الربح/الخسارة]]","v":89},null,"ST001","العنصر 5",10,12,2,1.5,null,14,7,{"$f":"IFERROR(JanuarySales[سعر البيع]-(JanuarySales[سعر الشراء]+JanuarySales[رسوم الإنترنت]+JanuarySales[رسوم PayPal]+JanuarySales[رسوم بطاقات الائتمان]),\"\")","v":-1.5},{"$f":"JanuarySales[مصاريف الشحن]-JanuarySales[رسوم الشحن]","v":7},{"$f":"JanuarySales[معدل الربح/الخسارة للمبيعات]+JanuarySales[معدل الربح/الخسارة للشحن]","v":5.5}]
[null,null,"  الإجمالي",{"$f":"\"العناصر المبيع: \"&SUBTOTAL(103,FebruarySales[وصف العنصر])","v":"العناصر المبيع: 5"},{"$f":"SUBTOTAL(109,JanuarySales[سعر الشراء])","v":154},{"$f":"SUBTOTAL(109,JanuarySales[سعر البيع])","v":249},{"$f":"SUBTOTAL(109,JanuarySales[رسوم الإنترنت])","v":8.5},{"$f":"SUBTOTAL(109,JanuarySales[رسوم PayPal])","v":5},{"$f":"SUBTOTAL(109,JanuarySales[رسوم بطاقات الائتمان])","v":2},{"$f":"SUBTOTAL(109,JanuarySales[مصاريف الشحن])","v":28},{"$f":"SUBTOTAL(109,JanuarySales[رسوم الشحن])","v":18.5},{"$f":"SUBTOTAL(109,JanuarySales[معدل الربح/الخسارة للمبيعات])","v":79.5},{"$f":"SUBTOTAL(109,JanuarySales[معدل الربح/الخسارة للشحن])","v":9.5},{"$f":"SUBTOTAL(109,JanuarySales[إجمالي الربح/الخسارة])","v":89}]
["اتجاه الربح/الخسارة"]

{"sheet":"فبراير","index":1,"n_rows":9,"n_cols":14,"rows_kept":9,"merged":[[3,0,4,0],[6,0,7,0]]}
["فبراير"]
["المبيعات عبر الإنترنت",null,"معرف المزاد","وصف العنصر","سعر الشراء","سعر البيع","رسوم الإنترنت","رسوم PayPal","رسوم بطاقات الائتمان","مصاريف الشحن","رسوم الشحن","معدل الربح/الخسارة للمبيعات","معدل الربح/الخسارة للشحن","إجمالي الربح/الخسارة"]
["سنة",null,"TS020","العنصر 1",10,175,3,1.5,0,7,5,{"$f":"IFERROR(FebruarySales[سعر البيع]-(FebruarySales[سعر الشراء]+FebruarySales[رسوم الإنترنت]+FebruarySales[رسوم PayPal]+FebruarySales[رسوم بطاقات الائتمان]),\"\")","v":160.5},{"$f":"FebruarySales[مصاريف الشحن]-FebruarySales[رسوم الشحن]","v":2},{"$f":"FebruarySales[معدل الربح/الخسارة للمبيعات]+FebruarySales[معدل الربح/الخسارة للشحن]","v":162.5}]
[{"$f":"SalesYear","v":2012},null,"TS021","العنصر 2",32,100,3,null,3.2,20,13,{"$f":"IFERROR(FebruarySales[سعر البيع]-(FebruarySales[سعر الشراء]+FebruarySales[رسوم الإنترنت]+FebruarySales[رسوم PayPal]+FebruarySales[رسوم بطاقات الائتمان]),\"\")","v":61.8},{"$f":"FebruarySales[مصاريف الشحن]-FebruarySales[رسوم الشحن]","v":7},{"$f":"FebruarySales[معدل الربح/الخسارة للمبيعات]+FebruarySales[معدل الربح/الخسارة للشحن]","v":68.8}]
[null,null,"TS022","العنصر 3",3,7,2,null,2,0.5,1.2,{"$f":"IFERROR(FebruarySales[سعر البيع]-(FebruarySales[سعر الشراء]+FebruarySales[رسوم الإنترنت]+FebruarySales[رسوم PayPal]+FebruarySales[رسوم بطاقات الائتمان]),\"\")","v":0},{"$f":"FebruarySales[مصاريف الشحن]-FebruarySales[رسوم الشحن]","v":-0.7},{"$f":"FebruarySales[معدل الربح/الخسارة للمبيعات]+FebruarySales[معدل الربح/الخسارة للشحن]","v":-0.7}]
["إجمالي الربح/الخسارة",null,"TS023","العنصر 4",22,18,3,1.5,null,7,10,{"$f":"IFERROR(FebruarySales[سعر البيع]-(FebruarySales[سعر الشراء]+FebruarySales[رسوم الإنترنت]+FebruarySales[رسوم PayPal]+FebruarySales[رسوم بطاقات الائتمان]),\"\")","v":-8.5},{"$f":"FebruarySales[مصاريف الشحن]-FebruarySales[رسوم الشحن]","v":-3},{"$f":"FebruarySales[معدل الربح/الخسارة للمبيعات]+FebruarySales[معدل الربح/الخسارة للشحن]","v":-11.5}]
[{"$f":"FebruarySales[[#Totals],[إجمالي الربح/الخسارة]]","v":224.60000000000002},null,"TS024","العنصر 5",10,12,2,1.5,null,14,7,{"$f":"IFERROR(FebruarySales[سعر البيع]-(FebruarySales[سعر الشراء]+FebruarySales[رسوم الإنترنت]+FebruarySales[رسوم PayPal]+FebruarySales[رسوم بطاقات الائتمان]),\"\")","v":-1.5},{"$f":"FebruarySales[مصاريف الشحن]-FebruarySales[رسوم الشحن]","v":7},{"$f":"FebruarySales[معدل الربح/الخسارة للمبيعات]+FebruarySales[معدل الربح/الخسارة للشحن]","v":5.5}]
[null,null,"  الإجمالي",{"$f":"\"العناصر المبيع: \"&SUBTOTAL(103,FebruarySales[وصف العنصر])","v":"العناصر المبيع: 5"},{"$f":"SUBTOTAL(109,FebruarySales[سعر الشراء])","v":77},{"$f":"SUBTOTAL(109,FebruarySales[سعر البيع])","v":312},{"$f":"SUBTOTAL(109,FebruarySales[رسوم الإنترنت])","v":13},{"$f":"SUBTOTAL(109,FebruarySales[رسوم PayPal])","v":4.5},{"$f":"SUBTOTAL(109,FebruarySales[رسوم بطاقات الائتمان])","v":5.2},{"$f":"SUBTOTAL(109,FebruarySales[مصاريف الشحن])","v":48.5},{"$f":"SUBTOTAL(109,FebruarySales[رسوم الشحن])","v":36.2},{"$f":"SUBTOTAL(109,FebruarySales[معدل الربح/الخسارة للمبيعات])","v":212.3},{"$f":"SUBTOTAL(109,FebruarySales[معدل الربح/الخسارة للشحن])","v":12.3},{"$f":"SUBTOTAL(109,FebruarySales[إجمالي الربح/الخسارة])","v":224.60000000000002}]
["اتجاه الربح/الخسارة"]

{"sheet":"مارس","index":2,"n_rows":9,"n_cols":14,"rows_kept":9,"merged":[[3,0,4,0],[6,0,7,0]]}
["مارس"]
["المبيعات عبر الإنترنت",null,"معرف المزاد","وصف العنصر","سعر الشراء","سعر البيع","رسوم الإنترنت","رسوم PayPal","رسوم بطاقات الائتمان","مصاريف الشحن","رسوم الشحن","معدل الربح/الخسارة للمبيعات","معدل الربح/الخسارة للشحن","إجمالي الربح/الخسارة"]
["سنة",{"$nulls":11},{"$f":"MarchSales[مصاريف الشحن]-MarchSales[رسوم الشحن]","v":0},{"$f":"MarchSales[معدل الربح/الخسارة للمبيعات]+MarchSales[معدل الربح/الخسارة للشحن]","v":0}]
[{"$f":"SalesYear","v":2012},{"$nulls":11},{"$f":"MarchSales[مصاريف الشحن]-MarchSales[رسوم الشحن]","v":0},{"$f":"MarchSales[معدل الربح/الخسارة للمبيعات]+MarchSales[معدل الربح/الخسارة للشحن]","v":0}]
[{"$nulls":12},{"$f":"MarchSales[مصاريف الشحن]-MarchSales[رسوم الشحن]","v":0},{"$f":"MarchSales[معدل الربح/الخسارة للمبيعات]+MarchSales[معدل الربح/الخسارة للشحن]","v":0}]
["إجمالي الربح/الخسارة",{"$nulls":11},{"$f":"MarchSales[مصاريف الشحن]-MarchSales[رسوم الشحن]","v":0},{"$f":"MarchSales[معدل الربح/الخسارة للمبيعات]+MarchSales[معدل الربح/الخسارة للشحن]","v":0}]
[{"$f":"MarchSales[[#Totals],[إجمالي الربح/الخسارة]]","v":0},{"$nulls":11},{"$f":"MarchSales[مصاريف الشحن]-MarchSales[رسوم الشحن]","v":0},{"$f":"MarchSales[معدل الربح/الخسارة للمبيعات]+MarchSales[معدل الربح/الخسارة للشحن]","v":0}]
[null,null,"  الإجمالي",{"$f":"\"العناصر المبيعة: \"&SUBTOTAL(103,MarchSales[وصف العنصر])","v":"العناصر المبيعة: 0"},{"$f":"SUBTOTAL(109,MarchSales[سعر الشراء])","v":0},{"$f":"SUBTOTAL(109,MarchSales[سعر البيع])","v":0},{"$f":"SUBTOTAL(109,MarchSales[رسوم الإنترنت])","v":0},{"$f":"SUBTOTAL(109,MarchSales[رسوم PayPal])","v":0},{"$f":"SUBTOTAL(109,MarchSales[رسوم بطاقات الائتمان])","v":0},{"$f":"SUBTOTAL(109,MarchSales[مصاريف الشحن])","v":0},{"$f":"SUBTOTAL(109,MarchSales[رسوم الشحن])","v":0},{"$f":"SUBTOTAL(109,MarchSales[معدل الربح/الخسارة للمبيعات])","v":0},{"$f":"SUBTOTAL(109,MarchSales[معدل الربح/الخسارة للشحن])","v":0},{"$f":"SUBTOTAL(109,MarchSales[إجمالي الربح/الخسارة])","v":0}]
["اتجاه الربح/الخسارة"]

{"sheet":"أبريل","index":3,"n_rows":9,"n_cols":14,"rows_kept":9,"merged":[[3,0,4,0],[6,0,7,0]]}
["أبريل"]
["المبيعات عبر الإنترنت",null,"معرف المزاد","وصف العنصر","سعر الشراء","سعر البيع","رسوم الإنترنت","رسوم PayPal","رسوم بطاقات الائتمان","مصاريف الشحن","رسوم الشحن","معدل الربح/الخسارة للمبيعات","معدل الربح/الخسارة للشحن","إجمالي الربح/الخسارة"]
["سنة",{"$nulls":11},{"$f":"AprilSales[مصاريف الشحن]-AprilSales[رسوم الشحن]","v":0},{"$f":"AprilSales[معدل الربح/الخسارة للمبيعات]+AprilSales[معدل الربح/الخسارة للشحن]","v":0}]
[{"$f":"SalesYear","v":2012},{"$nulls":11},{"$f":"AprilSales[مصاريف الشحن]-AprilSales[رسوم الشحن]","v":0},{"$f":"AprilSales[معدل الربح/الخسارة للمبيعات]+AprilSales[معدل الربح/الخسارة للشحن]","v":0}]
[{"$nulls":12},{"$f":"AprilSales[مصاريف الشحن]-AprilSales[رسوم الشحن]","v":0},{"$f":"AprilSales[معدل الربح/الخسارة للمبيعات]+AprilSales[معدل الربح/الخسارة للشحن]","v":0}]
["إجمالي الربح/الخسارة",{"$nulls":11},{"$f":"AprilSales[مصاريف الشحن]-AprilSales[رسوم الشحن]","v":0},{"$f":"AprilSales[معدل الربح/الخسارة للمبيعات]+AprilSales[معدل الربح/الخسارة للشحن]","v":0}]
[{"$f":"AprilSales[[#Totals],[إجمالي الربح/الخسارة]]","v":0},{"$nulls":11},{"$f":"AprilSales[مصاريف الشحن]-AprilSales[رسوم الشحن]","v":0},{"$f":"AprilSales[معدل الربح/الخسارة للمبيعات]+AprilSales[معدل الربح/الخسارة للشحن]","v":0}]
[null,null,"  الإجمالي",{"$f":"\"العناصر المبيعة: \"&SUBTOTAL(103,AprilSales[وصف العنصر])","v":"العناصر المبيعة: 0"},{"$f":"SUBTOTAL(109,AprilSales[سعر الشراء])","v":0},{"$f":"SUBTOTAL(109,AprilSales[سعر البيع])","v":0},{"$f":"SUBTOTAL(109,AprilSales[رسوم الإنترنت])","v":0},{"$f":"SUBTOTAL(109,AprilSales[رسوم PayPal])","v":0},{"$f":"SUBTOTAL(109,AprilSales[رسوم بطاقات الائتمان])","v":0},{"$f":"SUBTOTAL(109,AprilSales[مصاريف الشحن])","v":0},{"$f":"SUBTOTAL(109,AprilSales[رسوم الشحن])","v":0},{"$f":"SUBTOTAL(109,AprilSales[معدل الربح/الخسارة للمبيعات])","v":0},{"$f":"SUBTOTAL(109,AprilSales[معدل الربح/الخسارة للشحن])","v":0},{"$f":"SUBTOTAL(109,AprilSales[إجمالي الربح/الخسارة])","v":0}]
["اتجاه الربح/الخسارة"]

{"sheet":"مايو","index":4,"n_rows":9,"n_cols":14,"rows_kept":9,"merged":[[3,0,4,0],[6,0,7,0]]}
["مايو"]
["المبيعات عبر الإنترنت",null,"معرف المزاد","وصف العنصر","سعر الشراء","سعر البيع","رسوم الإنترنت","رسوم PayPal","رسوم بطاقات الائتمان","مصاريف الشحن","رسوم الشحن","معدل الربح/الخسارة للمبيعات","معدل الربح/الخسارة للشحن","إجمالي الربح/الخسارة"]
["سنة",{"$nulls":11},{"$f":"MaySales[مصاريف الشحن]-MaySales[رسوم الشحن]","v":0},{"$f":"MaySales[معدل الربح/الخسارة للمبيعات]+MaySales[معدل الربح/الخسارة للشحن]","v":0}]
[{"$f":"SalesYear","v":2012},{"$nulls":11},{"$f":"MaySales[مصاريف الشحن]-MaySales[رسوم الشحن]","v":0},{"$f":"MaySales[معدل الربح/الخسارة للمبيعات]+MaySales[معدل الربح/الخسارة للشحن]","v":0}]
[{"$nulls":12},{"$f":"MaySales[مصاريف الشحن]-MaySales[رسوم الشحن]","v":0},{"$f":"MaySales[معدل الربح/الخسارة للمبيعات]+MaySales[معدل الربح/الخسارة للشحن]","v":0}]
["إجمالي الربح/الخسارة",{"$nulls":11},{"$f":"MaySales[مصاريف الشحن]-MaySales[رسوم الشحن]","v":0},{"$f":"MaySales[معدل الربح/الخسارة للمبيعات]+MaySales[معدل الربح/الخسارة للشحن]","v":0}]
[{"$f":"MaySales[[#Totals],[إجمالي الربح/الخسارة]]","v":0},{"$nulls":11},{"$f":"MaySales[مصاريف الشحن]-MaySales[رسوم الشحن]","v":0},{"$f":"MaySales[معدل الربح/الخسارة للمبيعات]+MaySales[معدل الربح/الخسارة للشحن]","v":0}]
[null,null,"  الإجمالي",{"$f":"\"العناصر المبيعة: \"&SUBTOTAL(103,MaySales[وصف العنصر])","v":"العناصر المبيعة: 0"},{"$f":"SUBTOTAL(109,MaySales[سعر الشراء])","v":0},{"$f":"SUBTOTAL(109,MaySales[سعر البيع])","v":0},{"$f":"SUBTOTAL(109,MaySales[رسوم الإنترنت])","v":0},{"$f":"SUBTOTAL(109,MaySales[رسوم PayPal])","v":0},{"$f":"SUBTOTAL(109,MaySales[رسوم بطاقات الائتمان])","v":0},{"$f":"SUBTOTAL(109,MaySales[مصاريف الشحن])","v":0},{"$f":"SUBTOTAL(109,MaySales[رسوم الشحن])","v":0},{"$f":"SUBTOTAL(109,MaySales[معدل الربح/الخسارة للمبيعات])","v":0},{"$f":"SUBTOTAL(109,MaySales[معدل الربح/الخسارة للشحن])","v":0},{"$f":"SUBTOTAL(109,MaySales[إجمالي الربح/الخسارة])","v":0}]
["اتجاه الربح/الخسارة"]

{"sheet":"يونيو","index":5,"n_rows":9,"n_cols":14,"rows_kept":9,"merged":[[3,0,4,0],[6,0,7,0]]}
["يونيو"]
["المبيعات عبر الإنترنت",null,"معرف المزاد","وصف العنصر","سعر الشراء","سعر البيع","رسوم الإنترنت","رسوم PayPal","رسوم بطاقات الائتمان","مصاريف الشحن","رسوم الشحن","معدل الربح/الخسارة للمبيعات","معدل الربح/الخسارة للشحن","إجمالي الربح/الخسارة"]
["سنة",{"$nulls":11},{"$f":"JuneSales[مصاريف الشحن]-JuneSales[رسوم الشحن]","v":0},{"$f":"JuneSales[معدل الربح/الخسارة للمبيعات]+JuneSales[معدل الربح/الخسارة للشحن]","v":0}]
[{"$f":"SalesYear","v":2012},{"$nulls":11},{"$f":"JuneSales[مصاريف الشحن]-JuneSales[رسوم الشحن]","v":0},{"$f":"JuneSales[معدل الربح/الخسارة للمبيعات]+JuneSales[معدل الربح/الخسارة للشحن]","v":0}]
[{"$nulls":12},{"$f":"JuneSales[مصاريف الشحن]-JuneSales[رسوم الشحن]","v":0},{"$f":"JuneSales[معدل الربح/الخسارة للمبيعات]+JuneSales[معدل الربح/الخسارة للشحن]","v":0}]
["إجمالي الربح/الخسارة",{"$nulls":11},{"$f":"JuneSales[مصاريف الشحن]-JuneSales[رسوم الشحن]","v":0},{"$f":"JuneSales[معدل الربح/الخسارة للمبيعات]+JuneSales[معدل الربح/الخسارة للشحن]","v":0}]
[{"$f":"JuneSales[[#Totals],[إجمالي الربح/الخسارة]]","v":0},{"$nulls":11},{"$f":"JuneSales[مصاريف الشحن]-JuneSales[رسوم الشحن]","v":0},{"$f":"JuneSales[معدل الربح/الخسارة للمبيعات]+JuneSales[معدل الربح/الخسارة للشحن]","v":0}]
[null,null,"  الإجمالي",{"$f":"\"العناصر المبيعة: \"&SUBTOTAL(103,JuneSales[وصف العنصر])","v":"العناصر المبيعة: 0"},{"$f":"SUBTOTAL(109,JuneSales[سعر الشراء])","v":0},{"$f":"SUBTOTAL(109,JuneSales[سعر البيع])","v":0},{"$f":"SUBTOTAL(109,JuneSales[رسوم الإنترنت])","v":0},{"$f":"SUBTOTAL(109,JuneSales[رسوم PayPal])","v":0},{"$f":"SUBTOTAL(109,JuneSales[رسوم بطاقات الائتمان])","v":0},{"$f":"SUBTOTAL(109,JuneSales[مصاريف الشحن])","v":0},{"$f":"SUBTOTAL(109,JuneSales[رسوم الشحن])","v":0},{"$f":"SUBTOTAL(109,JuneSales[معدل الربح/الخسارة للمبيعات])","v":0},{"$f":"SUBTOTAL(109,JuneSales[معدل الربح/الخسارة للشحن])","v":0},{"$f":"SUBTOTAL(109,JuneSales[إجمالي الربح/الخسارة])","v":0}]
["اتجاه الربح/الخسارة"]

{"sheet":"يوليو","index":6,"n_rows":9,"n_cols":14,"rows_kept":9,"merged":[[3,0,4,0],[6,0,7,0]]}
["يوليو"]
["المبيعات عبر الإنترنت",null,"معرف المزاد","وصف العنصر","سعر الشراء","سعر البيع","رسوم الإنترنت","رسوم PayPal","رسوم بطاقات الائتمان","مصاريف الشحن","رسوم الشحن","معدل الربح/الخسارة للمبيعات","معدل الربح/الخسارة للشحن","إجمالي الربح/الخسارة"]
["سنة",{"$nulls":11},{"$f":"JulySales[مصاريف الشحن]-JulySales[رسوم الشحن]","v":0},{"$f":"JulySales[معدل الربح/الخسارة للمبيعات]+JulySales[معدل الربح/الخسارة للشحن]","v":0}]
[{"$f":"SalesYear","v":2012},{"$nulls":11},{"$f":"JulySales[مصاريف الشحن]-JulySales[رسوم الشحن]","v":0},{"$f":"JulySales[معدل الربح/الخسارة للمبيعات]+JulySales[معدل الربح/الخسارة للشحن]","v":0}]
[{"$nulls":12},{"$f":"JulySales[مصاريف الشحن]-JulySales[رسوم الشحن]","v":0},{"$f":"JulySales[معدل الربح/الخسارة للمبيعات]+JulySales[معدل الربح/الخسارة للشحن]","v":0}]
["إجمالي الربح/الخسارة",{"$nulls":11},{"$f":"JulySales[مصاريف الشحن]-JulySales[رسوم الشحن]","v":0},{"$f":"JulySales[معدل الربح/الخسارة للمبيعات]+JulySales[معدل الربح/الخسارة للشحن]","v":0}]
[{"$f":"JulySales[[#Totals],[إجمالي الربح/الخسارة]]","v":0},{"$nulls":11},{"$f":"JulySales[مصاريف الشحن]-JulySales[رسوم الشحن]","v":0},{"$f":"JulySales[معدل الربح/الخسارة للمبيعات]+JulySales[معدل الربح/الخسارة للشحن]","v":0}]
[null,null,"  الإجمالي",{"$f":"\"العناصر المبيعة: \"&SUBTOTAL(103,JulySales[وصف العنصر])","v":"العناصر المبيعة: 0"},{"$f":"SUBTOTAL(109,JulySales[سعر الشراء])","v":0},{"$f":"SUBTOTAL(109,JulySales[سعر البيع])","v":0},{"$f":"SUBTOTAL(109,JulySales[رسوم الإنترنت])","v":0},{"$f":"SUBTOTAL(109,JulySales[رسوم PayPal])","v":0},{"$f":"SUBTOTAL(109,JulySales[رسوم بطاقات الائتمان])","v":0},{"$f":"SUBTOTAL(109,JulySales[مصاريف الشحن])","v":0},{"$f":"SUBTOTAL(109,JulySales[رسوم الشحن])","v":0},{"$f":"SUBTOTAL(109,JulySales[معدل الربح/الخسارة للمبيعات])","v":0},{"$f":"SUBTOTAL(109,JulySales[معدل الربح/الخسارة للشحن])","v":0},{"$f":"SUBTOTAL(109,JulySales[إجمالي الربح/الخسارة])","v":0}]
["اتجاه الربح/الخسارة"]

{"sheet":"أغسطس","index":7,"n_rows":9,"n_cols":14,"rows_kept":9,"merged":[[3,0,4,0],[6,0,7,0]]}
["أغسطس"]
["المبيعات عبر الإنترنت",null,"معرف المزاد","وصف العنصر","سعر الشراء","سعر البيع","رسوم الإنترنت","رسوم PayPal","رسوم بطاقات الائتمان","مصاريف الشحن","رسوم الشحن","معدل الربح/الخسارة للمبيعات","معدل الربح/الخسارة للشحن","إجمالي الربح/الخسارة"]
["سنة",{"$nulls":11},{"$f":"AugustSales[مصاريف الشحن]-AugustSales[رسوم الشحن]","v":0},{"$f":"AugustSales[معدل الربح/الخسارة للمبيعات]+AugustSales[معدل الربح/الخسارة للشحن]","v":0}]
[{"$f":"SalesYear","v":2012},{"$nulls":11},{"$f":"AugustSales[مصاريف الشحن]-AugustSales[رسوم الشحن]","v":0},{"$f":"AugustSales[معدل الربح/الخسارة للمبيعات]+AugustSales[معدل الربح/الخسارة للشحن]","v":0}]
[{"$nulls":12},{"$f":"AugustSales[مصاريف الشحن]-AugustSales[رسوم الشحن]","v":0},{"$f":"AugustSales[معدل الربح/الخسارة للمبيعات]+AugustSales[معدل الربح/الخسارة للشحن]","v":0}]
["إجمالي الربح/الخسارة",{"$nulls":11},{"$f":"AugustSales[مصاريف الشحن]-AugustSales[رسوم الشحن]","v":0},{"$f":"AugustSales[معدل الربح/الخسارة للمبيعات]+AugustSales[معدل الربح/الخسارة للشحن]","v":0}]
[{"$f":"AugustSales[[#Totals],[إجمالي الربح/الخسارة]]","v":0},{"$nulls":11},{"$f":"AugustSales[مصاريف الشحن]-AugustSales[رسوم الشحن]","v":0},{"$f":"AugustSales[معدل الربح/الخسارة للمبيعات]+AugustSales[معدل الربح/الخسارة للشحن]","v":0}]
[null,null,"  الإجمالي",{"$f":"\"العناصر المبيعة: \"&SUBTOTAL(103,AugustSales[وصف العنصر])","v":"العناصر المبيعة: 0"},{"$f":"SUBTOTAL(109,AugustSales[سعر الشراء])","v":0},{"$f":"SUBTOTAL(109,AugustSales[سعر البيع])","v":0},{"$f":"SUBTOTAL(109,AugustSales[رسوم الإنترنت])","v":0},{"$f":"SUBTOTAL(109,AugustSales[رسوم PayPal])","v":0},{"$f":"SUBTOTAL(109,AugustSales[رسوم بطاقات الائتمان])","v":0},{"$f":"SUBTOTAL(109,AugustSales[مصاريف الشحن])","v":0},{"$f":"SUBTOTAL(109,AugustSales[رسوم الشحن])","v":0},{"$f":"SUBTOTAL(109,AugustSales[معدل الربح/الخسارة للمبيعات])","v":0},{"$f":"SUBTOTAL(109,AugustSales[معدل الربح/الخسارة للشحن])","v":0},{"$f":"SUBTOTAL(109,AugustSales[إجمالي الربح/الخسارة])","v":0}]
["اتجاه الربح/الخسارة"]

{"sheet":"سبتمبر","index":8,"n_rows":9,"n_cols":14,"rows_kept":9,"merged":[[3,0,4,0],[6,0,7,0]]}
["سبتمبر"]
["المبيعات عبر الإنترنت",null,"معرف المزاد","وصف العنصر","سعر الشراء","سعر البيع","رسوم الإنترنت","رسوم PayPal","رسوم بطاقات الائتمان","مصاريف الشحن","رسوم الشحن","معدل الربح/الخسارة للمبيعات","معدل الربح/الخسارة للشحن","إجمالي الربح/الخسارة"]
["سنة",{"$nulls":11},{"$f":"SeptemberSales[مصاريف الشحن]-SeptemberSales[رسوم الشحن]","v":0},{"$f":"SeptemberSales[معدل الربح/الخسارة للمبيعات]+SeptemberSales[معدل الربح/الخسارة للشحن]","v":0}]
[{"$f":"SalesYear","v":2012},{"$nulls":11},{"$f":"SeptemberSales[مصاريف الشحن]-SeptemberSales[رسوم الشحن]","v":0},{"$f":"SeptemberSales[معدل الربح/الخسارة للمبيعات]+SeptemberSales[معدل الربح/الخسارة للشحن]","v":0}]
[{"$nulls":12},{"$f":"SeptemberSales[مصاريف الشحن]-SeptemberSales[رسوم الشحن]","v":0},{"$f":"SeptemberSales[معدل الربح/الخسارة للمبيعات]+SeptemberSales[معدل الربح/الخسارة للشحن]","v":0}]
["إجمالي الربح/الخسارة",{"$nulls":11},{"$f":"SeptemberSales[مصاريف الشحن]-SeptemberSales[رسوم الشحن]","v":0},{"$f":"SeptemberSales[معدل الربح/الخسارة للمبيعات]+SeptemberSales[معدل الربح/الخسارة للشحن]","v":0}]
[{"$f":"SeptemberSales[[#Totals],[إجمالي الربح/الخسارة]]","v":0},{"$nulls":11},{"$f":"SeptemberSales[مصاريف الشحن]-SeptemberSales[رسوم الشحن]","v":0},{"$f":"SeptemberSales[معدل الربح/الخسارة للمبيعات]+SeptemberSales[معدل الربح/الخسارة للشحن]","v":0}]
[null,null,"  الإجمالي",{"$f":"\"العناصر المبيعة: \"&SUBTOTAL(103,SeptemberSales[وصف العنصر])","v":"العناصر المبيعة: 0"},{"$f":"SUBTOTAL(109,SeptemberSales[سعر الشراء])","v":0},{"$f":"SUBTOTAL(109,SeptemberSales[سعر البيع])","v":0},{"$f":"SUBTOTAL(109,SeptemberSales[رسوم الإنترنت])","v":0},{"$f":"SUBTOTAL(109,SeptemberSales[رسوم PayPal])","v":0},{"$f":"SUBTOTAL(109,SeptemberSales[رسوم بطاقات الائتمان])","v":0},{"$f":"SUBTOTAL(109,SeptemberSales[مصاريف الشحن])","v":0},{"$f":"SUBTOTAL(109,SeptemberSales[رسوم الشحن])","v":0},{"$f":"SUBTOTAL(109,SeptemberSales[معدل الربح/الخسارة للمبيعات])","v":0},{"$f":"SUBTOTAL(109,SeptemberSales[معدل الربح/الخسارة للشحن])","v":0},{"$f":"SUBTOTAL(109,SeptemberSales[إجمالي الربح/الخسارة])","v":0}]
["اتجاه الربح/الخسارة"]

{"sheet":"أكتوبر","index":9,"n_rows":9,"n_cols":14,"rows_kept":9,"merged":[[3,0,4,0],[6,0,7,0]]}
["أكتوبر"]
["المبيعات عبر الإنترنت",null,"معرف المزاد","وصف العنصر","سعر الشراء","سعر البيع","رسوم الإنترنت","رسوم PayPal","رسوم بطاقات الائتمان","مصاريف الشحن","رسوم الشحن","معدل الربح/الخسارة للمبيعات","معدل الربح/الخسارة للشحن","إجمالي الربح/الخسارة"]
["سنة",{"$nulls":11},{"$f":"OctoberSales[مصاريف الشحن]-OctoberSales[رسوم الشحن]","v":0},{"$f":"OctoberSales[معدل الربح/الخسارة للمبيعات]+OctoberSales[معدل الربح/الخسارة للشحن]","v":0}]
[{"$f":"SalesYear","v":2012},{"$nulls":11},{"$f":"OctoberSales[مصاريف الشحن]-OctoberSales[رسوم الشحن]","v":0},{"$f":"OctoberSales[معدل الربح/الخسارة للمبيعات]+OctoberSales[معدل الربح/الخسارة للشحن]","v":0}]
[{"$nulls":12},{"$f":"OctoberSales[مصاريف الشحن]-OctoberSales[رسوم الشحن]","v":0},{"$f":"OctoberSales[معدل الربح/الخسارة للمبيعات]+OctoberSales[معدل الربح/الخسارة للشحن]","v":0}]
["إجمالي الربح/الخسارة",{"$nulls":11},{"$f":"OctoberSales[مصاريف الشحن]-OctoberSales[رسوم الشحن]","v":0},{"$f":"OctoberSales[معدل الربح/الخسارة للمبيعات]+OctoberSales[معدل الربح/الخسارة للشحن]","v":0}]
[{"$f":"OctoberSales[[#Totals],[إجمالي الربح/الخسارة]]","v":0},{"$nulls":11},{"$f":"OctoberSales[مصاريف الشحن]-OctoberSales[رسوم الشحن]","v":0},{"$f":"OctoberSales[معدل الربح/الخسارة للمبيعات]+OctoberSales[معدل الربح/الخسارة للشحن]","v":0}]
[null,null,"  الإجمالي",{"$f":"\"العناصر المبيعة: \"&SUBTOTAL(103,OctoberSales[وصف العنصر])","v":"العناصر المبيعة: 0"},{"$f":"SUBTOTAL(109,OctoberSales[سعر الشراء])","v":0},{"$f":"SUBTOTAL(109,OctoberSales[سعر البيع])","v":0},{"$f":"SUBTOTAL(109,OctoberSales[رسوم الإنترنت])","v":0},{"$f":"SUBTOTAL(109,OctoberSales[رسوم PayPal])","v":0},{"$f":"SUBTOTAL(109,OctoberSales[رسوم بطاقات الائتمان])","v":0},{"$f":"SUBTOTAL(109,OctoberSales[مصاريف الشحن])","v":0},{"$f":"SUBTOTAL(109,OctoberSales[رسوم الشحن])","v":0},{"$f":"SUBTOTAL(109,OctoberSales[معدل الربح/الخسارة للمبيعات])","v":0},{"$f":"SUBTOTAL(109,OctoberSales[معدل الربح/الخسارة للشحن])","v":0},{"$f":"SUBTOTAL(109,OctoberSales[إجمالي الربح/الخسارة])","v":0}]
["اتجاه الربح/الخسارة"]

{"sheet":"نوفمبر","index":10,"n_rows":9,"n_cols":14,"rows_kept":9,"merged":[[3,0,4,0],[6,0,7,0]]}
["نوفمبر"]
["المبيعات عبر الإنترنت",null,"معرف المزاد","وصف العنصر","سعر الشراء","سعر البيع","رسوم الإنترنت","رسوم PayPal","رسوم بطاقات الائتمان","مصاريف الشحن","رسوم الشحن","معدل الربح/الخسارة للمبيعات","معدل الربح/الخسارة للشحن","إجمالي الربح/الخسارة"]
["سنة",{"$nulls":11},{"$f":"NovemberSales[مصاريف الشحن]-NovemberSales[رسوم الشحن]","v":0},{"$f":"NovemberSales[معدل الربح/الخسارة للمبيعات]+NovemberSales[معدل الربح/الخسارة للشحن]","v":0}]
[{"$f":"SalesYear","v":2012},{"$nulls":11},{"$f":"NovemberSales[مصاريف الشحن]-NovemberSales[رسوم الشحن]","v":0},{"$f":"NovemberSales[معدل الربح/الخسارة للمبيعات]+NovemberSales[معدل الربح/الخسارة للشحن]","v":0}]
[{"$nulls":12},{"$f":"NovemberSales[مصاريف الشحن]-NovemberSales[رسوم الشحن]","v":0},{"$f":"NovemberSales[معدل الربح/الخسارة للمبيعات]+NovemberSales[معدل الربح/الخسارة للشحن]","v":0}]
["إجمالي الربح/الخسارة",{"$nulls":11},{"$f":"NovemberSales[مصاريف الشحن]-NovemberSales[رسوم الشحن]","v":0},{"$f":"NovemberSales[معدل الربح/الخسارة للمبيعات]+NovemberSales[معدل الربح/الخسارة للشحن]","v":0}]
[{"$f":"NovemberSales[[#Totals],[إجمالي الربح/الخسارة]]","v":0},{"$nulls":11},{"$f":"NovemberSales[مصاريف الشحن]-NovemberSales[رسوم الشحن]","v":0},{"$f":"NovemberSales[معدل الربح/الخسارة للمبيعات]+NovemberSales[معدل الربح/الخسارة للشحن]","v":0}]
[null,null,"  الإجمالي",{"$f":"\"العناصر المبيعة: \"&SUBTOTAL(103,NovemberSales[وصف العنصر])","v":"العناصر المبيعة: 0"},{"$f":"SUBTOTAL(109,NovemberSales[سعر الشراء])","v":0},{"$f":"SUBTOTAL(109,NovemberSales[سعر البيع])","v":0},{"$f":"SUBTOTAL(109,NovemberSales[رسوم الإنترنت])","v":0},{"$f":"SUBTOTAL(109,NovemberSales[رسوم PayPal])","v":0},{"$f":"SUBTOTAL(109,NovemberSales[رسوم بطاقات الائتمان])","v":0},{"$f":"SUBTOTAL(109,NovemberSales[مصاريف الشحن])","v":0},{"$f":"SUBTOTAL(109,NovemberSales[رسوم الشحن])","v":0},{"$f":"SUBTOTAL(109,NovemberSales[معدل الربح/الخسارة للمبيعات])","v":0},{"$f":"SUBTOTAL(109,NovemberSales[معدل الربح/الخسارة للشحن])","v":0},{"$f":"SUBTOTAL(109,NovemberSales[إجمالي الربح/الخسارة])","v":0}]
["اتجاه الربح/الخسارة"]

{"sheet":"ديسمبر","index":11,"n_rows":9,"n_cols":14,"rows_kept":9,"merged":[[3,0,4,0],[6,0,7,0]]}
["ديسمبر"]
["المبيعات عبر الإنترنت",null,"معرف المزاد","وصف العنصر","سعر الشراء","سعر البيع","رسوم الإنترنت","رسوم PayPal","رسوم بطاقات الائتمان","مصاريف الشحن","رسوم الشحن","معدل الربح/الخسارة للمبيعات","معدل الربح/الخسارة للشحن","إجمالي الربح/الخسارة"]
["سنة",{"$nulls":11},{"$f":"DecemberSales[مصاريف الشحن]-DecemberSales[رسوم الشحن]","v":0},{"$f":"DecemberSales[معدل الربح/الخسارة للمبيعات]+DecemberSales[معدل الربح/الخسارة للشحن]","v":0}]
[{"$f":"SalesYear","v":2012},{"$nulls":11},{"$f":"DecemberSales[مصاريف الشحن]-DecemberSales[رسوم الشحن]","v":0},{"$f":"DecemberSales[معدل الربح/الخسارة للمبيعات]+DecemberSales[معدل الربح/الخسارة للشحن]","v":0}]
[{"$nulls":12},{"$f":"DecemberSales[مصاريف الشحن]-DecemberSales[رسوم الشحن]","v":0},{"$f":"DecemberSales[معدل الربح/الخسارة للمبيعات]+DecemberSales[معدل الربح/الخسارة للشحن]","v":0}]
["إجمالي الربح/الخسارة",{"$nulls":11},{"$f":"DecemberSales[مصاريف الشحن]-DecemberSales[رسوم الشحن]","v":0},{"$f":"DecemberSales[معدل الربح/الخسارة للمبيعات]+DecemberSales[معدل الربح/الخسارة للشحن]","v":0}]
[{"$f":"DecemberSales[[#Totals],[إجمالي الربح/الخسارة]]","v":0},{"$nulls":11},{"$f":"DecemberSales[مصاريف الشحن]-DecemberSales[رسوم الشحن]","v":0},{"$f":"DecemberSales[معدل الربح/الخسارة للمبيعات]+DecemberSales[معدل الربح/الخسارة للشحن]","v":0}]
[null,null," الإجمالي",{"$f":"\"العناصر المبيعة:: \"&SUBTOTAL(103,DecemberSales[وصف العنصر])","v":"العناصر المبيعة:: 0"},{"$f":"SUBTOTAL(109,DecemberSales[سعر الشراء])","v":0},{"$f":"SUBTOTAL(109,DecemberSales[سعر البيع])","v":0},{"$f":"SUBTOTAL(109,DecemberSales[رسوم الإنترنت])","v":0},{"$f":"SUBTOTAL(109,DecemberSales[رسوم PayPal])","v":0},{"$f":"SUBTOTAL(109,DecemberSales[رسوم بطاقات الائتمان])","v":0},{"$f":"SUBTOTAL(109,DecemberSales[مصاريف الشحن])","v":0},{"$f":"SUBTOTAL(109,DecemberSales[رسوم الشحن])","v":0},{"$f":"SUBTOTAL(109,DecemberSales[معدل الربح/الخسارة للمبيعات])","v":0},{"$f":"SUBTOTAL(109,DecemberSales[معدل الربح/الخسارة للشحن])","v":0},{"$f":"SUBTOTAL(109,DecemberSales[إجمالي الربح/الخسارة])","v":0}]
["اتجاه الربح/الخسارة"]

{"sheet":"ملخص من بداية العام حتى اليوم","index":12,"n_rows":16,"n_cols":11,"rows_kept":16,"merged":[[0,0,1,0],[3,0,4,0],[6,0,7,0]]}
["الملخص من بداية السنة حتى اليوم"]
[null,null,"الربح/الخسارة",{"$nulls":4},"الربح/الخسارة من بداية حتى اليوم"]
["سنة",{"$nulls":6},"الشهر","معدل الربح/الخسارة للمبيعات","معدل الربح/الخسارة للشحن","إجمالي الربح/الخسارة"]
[{"$f":"SalesYear","v":2012},{"$nulls":6},"يناير",{"$f":"JanuarySales[[#Totals],[معدل الربح/الخسارة للمبيعات]]","v":79.5},{"$f":"JanuarySales[[#Totals],[معدل الربح/الخسارة للشحن]]","v":9.5},{"$f":"IF(AND(YTDSummary[[#This Row],[معدل الربح/الخسارة للمبيعات]]<>\"\",YTDSummary[[#This Row],[معدل الربح/الخسارة للشحن]]<>\"\"),YTDSummary[[#This Row],[معدل الربح/الخسارة للمبيعات]]+YTDSummary[[#This Row],[معدل الربح/الخسارة للشحن]],\"\")","v":89}]
[{"$nulls":7},"فبراير",{"$f":"FebruarySales[[#Totals],[معدل الربح/الخسارة للمبيعات]]","v":212.3},{"$f":"FebruarySales[[#Totals],[معدل الربح/الخسارة للشحن]]","v":12.3},{"$f":"IF(AND(YTDSummary[[#This Row],[معدل الربح/الخسارة للمبيعات]]<>\"\",YTDSummary[[#This Row],[معدل الربح/الخسارة للشحن]]<>\"\"),YTDSummary[[#This Row],[معدل الربح/الخسارة للمبيعات]]+YTDSummary[[#This Row],[معدل الربح/الخسارة للشحن]],\"\")","v":224.60000000000002}]
["اتجاه المبيعات الشهرية:",{"$nulls":6},"مارس",{"$f":"MarchSales[[#Totals],[معدل الربح/الخسارة للمبيعات]]","v":0},{"$f":"MarchSales[[#Totals],[معدل الربح/الخسارة للشحن]]","v":0},{"$f":"IF(AND(YTDSummary[[#This Row],[معدل الربح/الخسارة للمبيعات]]<>\"\",YTDSummary[[#This Row],[معدل الربح/الخسارة للشحن]]<>\"\"),YTDSummary[[#This Row],[معدل الربح/الخسارة للمبيعات]]+YTDSummary[[#This Row],[معدل الربح/الخسارة للشحن]],\"\")","v":0}]
[{"$nulls":7},"أبريل",{"$f":"AprilSales[[#Totals],[معدل الربح/الخسارة للمبيعات]]","v":0},{"$f":"AprilSales[[#Totals],[معدل الربح/الخسارة للشحن]]","v":0},{"$f":"IF(AND(YTDSummary[[#This Row],[معدل الربح/الخسارة للمبيعات]]<>\"\",YTDSummary[[#This Row],[معدل الربح/الخسارة للشحن]]<>\"\"),YTDSummary[[#This Row],[معدل الربح/الخسارة للمبيعات]]+YTDSummary[[#This Row],[معدل الربح/الخسارة للشحن]],\"\")","v":0}]
[{"$nulls":7},"مايو",{"$f":"MaySales[[#Totals],[معدل الربح/الخسارة للمبيعات]]","v":0},{"$f":"MaySales[[#Totals],[معدل الربح/الخسارة للشحن]]","v":0},{"$f":"IF(AND(YTDSummary[[#This Row],[معدل الربح/الخسارة للمبيعات]]<>\"\",YTDSummary[[#This Row],[معدل الربح/الخسارة للشحن]]<>\"\"),YTDSummary[[#This Row],[معدل الربح/الخسارة للمبيعات]]+YTDSummary[[#This Row],[معدل الربح/الخسارة للشحن]],\"\")","v":0}]
[{"$nulls":7},"يونيو",{"$f":"JuneSales[[#Totals],[معدل الربح/الخسارة للمبيعات]]","v":0},{"$f":"JuneSales[[#Totals],[معدل الربح/الخسارة للشحن]]","v":0},{"$f":"IF(AND(YTDSummary[[#This Row],[معدل الربح/الخسارة للمبيعات]]<>\"\",YTDSummary[[#This Row],[معدل الربح/الخسارة للشحن]]<>\"\"),YTDSummary[[#This Row],[معدل الربح/الخسارة للمبيعات]]+YTDSummary[[#This Row],[معدل الربح/الخسارة للشحن]],\"\")","v":0}]
[{"$nulls":7},"يوليو",{"$f":"JulySales[[#Totals],[معدل الربح/الخسارة للمبيعات]]","v":0},{"$f":"JulySales[[#Totals],[معدل الربح/الخسارة للشحن]]","v":0},{"$f":"IF(AND(YTDSummary[[#This Row],[معدل الربح/الخسارة للمبيعات]]<>\"\",YTDSummary[[#This Row],[معدل الربح/الخسارة للشحن]]<>\"\"),YTDSummary[[#This Row],[معدل الربح/الخسارة للمبيعات]]+YTDSummary[[#This Row],[معدل الربح/الخسارة للشحن]],\"\")","v":0}]
[{"$nulls":7},"أغسطس",{"$f":"AugustSales[[#Totals],[معدل الربح/الخسارة للمبيعات]]","v":0},{"$f":"AugustSales[[#Totals],[معدل الربح/الخسارة للشحن]]","v":0},{"$f":"IF(AND(YTDSummary[[#This Row],[معدل الربح/الخسارة للمبيعات]]<>\"\",YTDSummary[[#This Row],[معدل الربح/الخسارة للشحن]]<>\"\"),YTDSummary[[#This Row],[معدل الربح/الخسارة للمبيعات]]+YTDSummary[[#This Row],[معدل الربح/الخسارة للشحن]],\"\")","v":0}]
[{"$nulls":7},"سبتمبر",{"$f":"SeptemberSales[[#Totals],[معدل الربح/الخسارة للمبيعات]]","v":0},{"$f":"SeptemberSales[[#Totals],[معدل الربح/الخسارة للشحن]]","v":0},{"$f":"IF(AND(YTDSummary[[#This Row],[معدل الربح/الخسارة للمبيعات]]<>\"\",YTDSummary[[#This Row],[معدل الربح/الخسارة للشحن]]<>\"\"),YTDSummary[[#This Row],[معدل الربح/الخسارة للمبيعات]]+YTDSummary[[#This Row],[معدل الربح/الخسارة للشحن]],\"\")","v":0}]
[{"$nulls":7},"أكتوبر",{"$f":"OctoberSales[[#Totals],[معدل الربح/الخسارة للمبيعات]]","v":0},{"$f":"OctoberSales[[#Totals],[معدل الربح/الخسارة للشحن]]","v":0},{"$f":"IF(AND(YTDSummary[[#This Row],[معدل الربح/الخسارة للمبيعات]]<>\"\",YTDSummary[[#This Row],[معدل الربح/الخسارة للشحن]]<>\"\"),YTDSummary[[#This Row],[معدل الربح/الخسارة للمبيعات]]+YTDSummary[[#This Row],[معدل الربح/الخسارة للشحن]],\"\")","v":0}]
[{"$nulls":7},"نوفمبر",{"$f":"NovemberSales[[#Totals],[معدل الربح/الخسارة للمبيعات]]","v":0},{"$f":"NovemberSales[[#Totals],[معدل الربح/الخسارة للشحن]]","v":0},{"$f":"IF(AND(YTDSummary[[#This Row],[معدل الربح/الخسارة للمبيعات]]<>\"\",YTDSummary[[#This Row],[معدل الربح/الخسارة للشحن]]<>\"\"),YTDSummary[[#This Row],[معدل الربح/الخسارة للمبيعات]]+YTDSummary[[#This Row],[معدل الربح/الخسارة للشحن]],\"\")","v":0}]
[{"$nulls":7},"ديسمبر",{"$f":"DecemberSales[[#Totals],[معدل الربح/الخسارة للمبيعات]]","v":0},{"$f":"DecemberSales[[#Totals],[معدل الربح/الخسارة للشحن]]","v":0},{"$f":"IF(AND(YTDSummary[[#This Row],[معدل الربح/الخسارة للمبيعات]]<>\"\",YTDSummary[[#This Row],[معدل الربح/الخسارة للشحن]]<>\"\"),YTDSummary[[#This Row],[معدل الربح/الخسارة للمبيعات]]+YTDSummary[[#This Row],[معدل الربح/الخسارة للشحن]],\"\")","v":0}]
[{"$nulls":7},"الإجماليات",{"$f":"SUBTOTAL(109,YTDSummary[معدل الربح/الخسارة للمبيعات])","v":291.8},{"$f":"SUBTOTAL(109,YTDSummary[معدل الربح/الخسارة للشحن])","v":21.8},{"$f":"SUBTOTAL(109,YTDSummary[إجمالي الربح/الخسارة])","v":313.6}]